[Event "Titled Tuesday Blitz September 27 Early 2022"]
[White "Ismayil, Malak"]
[Black "Johnson, Ben"]
[WhiteFideId "13412604"]
[BlackFideId "2010917"]
[WhiteElo "1879"]
[BlackElo "2208"]
[Result "1-0"]
[Round "05"]
[TimeControl "180+1"]
[Date "2022.09.27"]
[WhiteClock "0:01:12"]
[BlackClock "0:00:30"]

1. e4 {[%clk 0:03:00]}  c5 {[%clk 0:03:00]} 2. Nf3 {[%clk 0:03:00]}  Nc6 {[%clk 0:03:00]} 3. Bb5 {[%clk 0:03:00]}  g6 {[%clk 0:03:00]} 4. Bxc6 {[%clk 0:03:00]}  bxc6 {[%clk 0:03:01]} 5. h3 {[%clk 0:02:57]}  Bg7 {[%clk 0:02:59]} 6. d3 {[%clk 0:02:58]}  Qc7 {[%clk 0:02:52]} 7. Nc3 {[%clk 0:02:57]}  Nf6 {[%clk 0:02:51]} 8. Be3 {[%clk 0:02:57]}  d6 {[%clk 0:02:50]} 9. Qd2 {[%clk 0:02:57]}  Rb8 {[%clk 0:02:44]} 10. b3 {[%clk 0:02:57]}  O-O {[%clk 0:02:13]} 11. O-O {[%clk 0:02:55]}  Rd8 {[%clk 0:02:10]} 12. Rad1 {[%clk 0:02:47]}  a5 {[%clk 0:02:07]} 13. Na4 {[%clk 0:02:47]}  Ba6 {[%clk 0:02:05]} 14. Rfe1 {[%clk 0:02:44]}  Nd7 {[%clk 0:02:00]} 15. c4 {[%clk 0:02:33]}  Rb4 {[%clk 0:01:49]} 16. Qe2 {[%clk 0:02:00]}  Nb6 {[%clk 0:01:42]} 17. Bd2 {[%clk 0:01:54]}  Nxa4 {[%clk 0:01:15]} 18. Bxb4 {[%clk 0:01:52]}  axb4 {[%clk 0:01:16]} 19. bxa4 {[%clk 0:01:51]}  Ra8 {[%clk 0:01:16]} 20. e5 {[%clk 0:01:49]}  d5 {[%clk 0:01:13]} 21. e6 {[%clk 0:01:38]}  f6 {[%clk 0:00:58]} 22. Rc1 {[%clk 0:01:29]}  Bc8 {[%clk 0:00:47]} 23. cxd5 {[%clk 0:01:23]}  cxd5 {[%clk 0:00:48]} 24. Qc2 {[%clk 0:01:23]}  Ra5 {[%clk 0:00:44]} 25. Nd4 {[%clk 0:01:18]}  Qf4 {[%clk 0:00:33]} 26. Nc6 {[%clk 0:01:14]}  Kf8 {[%clk 0:00:30]} 27. Nxa5 {[%clk 0:01:12]} 1-0


[Site "https://www.chess.com"]

[Event "Titled Tuesday Blitz September 27 Early 2022"]
[White "Jakubowski, Krzysztof"]
[Black "Kislov, Oleg"]
[WhiteFideId "1112848"]
[BlackFideId "13503774"]
[WhiteElo "2306"]
[BlackElo "2185"]
[Result "0-1"]
[Round "05"]
[TimeControl "180+1"]
[Date "2022.09.27"]
[WhiteClock "0:00:54"]
[BlackClock "0:00:08"]

1. e4 {[%clk 0:03:00]}  c5 {[%clk 0:02:56]} 2. Nf3 {[%clk 0:02:59]}  Nc6 {[%clk 0:02:55]} 3. d4 {[%clk 0:02:59]}  cxd4 {[%clk 0:02:55]} 4. Nxd4 {[%clk 0:02:58]}  e5 {[%clk 0:02:56]} 5. Nb5 {[%clk 0:02:56]}  d6 {[%clk 0:02:56]} 6. N1c3 {[%clk 0:02:55]}  a6 {[%clk 0:02:56]} 7. Na3 {[%clk 0:02:55]}  b5 {[%clk 0:02:56]} 8. Nd5 {[%clk 0:02:55]}  Nge7 {[%clk 0:02:56]} 9. c4 {[%clk 0:02:54]}  Nd4 {[%clk 0:02:55]} 10. Be3 {[%clk 0:02:48]}  Nxd5 {[%clk 0:02:55]} 11. cxd5 {[%clk 0:02:47]}  Be7 {[%clk 0:02:54]} 12. Bxd4 {[%clk 0:02:44]}  exd4 {[%clk 0:02:54]} 13. Bd3 {[%clk 0:02:40]}  O-O {[%clk 0:02:53]} 14. O-O {[%clk 0:02:39]}  Bd7 {[%clk 0:02:53]} 15. Nc2 {[%clk 0:02:38]}  Bf6 {[%clk 0:02:53]} 16. Nb4 {[%clk 0:02:35]}  Qb6 {[%clk 0:02:48]} 17. Rc1 {[%clk 0:02:33]}  Rac8 {[%clk 0:02:46]} 18. Qb3 {[%clk 0:02:26]}  Rc5 {[%clk 0:02:42]} 19. Bb1 {[%clk 0:02:17]}  Rfc8 {[%clk 0:02:32]} 20. Rcd1 {[%clk 0:02:16]}  a5 {[%clk 0:02:17]} 21. Nd3 {[%clk 0:02:14]}  Rc4 {[%clk 0:02:15]} 22. a3 {[%clk 0:02:04]}  g6 {[%clk 0:01:45]} 23. Rde1 {[%clk 0:02:01]}  Bg7 {[%clk 0:01:42]} 24. f4 {[%clk 0:01:46]}  Re8 {[%clk 0:01:31]} 25. Qd1 {[%clk 0:01:45]}  Qb7 {[%clk 0:00:55]} 26. Qf3 {[%clk 0:01:43]}  b4 {[%clk 0:00:34]} 27. axb4 {[%clk 0:01:42]}  axb4 {[%clk 0:00:34]} 28. f5 {[%clk 0:01:41]}  Bb5 {[%clk 0:00:23]} 29. Qg3 {[%clk 0:01:24]}  Rcc8 {[%clk 0:00:22]} 30. Qxd6 {[%clk 0:01:16]}  Bxd3 {[%clk 0:00:22]} 31. Bxd3 {[%clk 0:01:16]}  Be5 {[%clk 0:00:21]} 32. Qa6 {[%clk 0:01:14]}  Qxa6 {[%clk 0:00:20]} 33. Bxa6 {[%clk 0:01:13]}  Rc2 {[%clk 0:00:19]} 34. b3 {[%clk 0:01:09]}  Ra8 {[%clk 0:00:19]} 35. Bc4 {[%clk 0:01:07]}  Raa2 {[%clk 0:00:19]} 36. Rf3 {[%clk 0:00:58]}  Rxg2+ {[%clk 0:00:18]} 37. Kf1 {[%clk 0:00:59]}  Rxh2 {[%clk 0:00:18]} 38. Re2 {[%clk 0:01:00]}  Ra1+ {[%clk 0:00:15]} 39. Re1 {[%clk 0:00:58]}  Rh1+ {[%clk 0:00:15]} 40. Kf2 {[%clk 0:00:56]}  Rhxe1 {[%clk 0:00:15]} 41. fxg6 {[%clk 0:00:56]}  hxg6 {[%clk 0:00:15]} 42. d6 {[%clk 0:00:55]}  Bxd6 {[%clk 0:00:15]} 43. Bxf7+ {[%clk 0:00:55]}  Kg7 {[%clk 0:00:15]} 44. Bc4 {[%clk 0:00:56]}  Rec1 {[%clk 0:00:12]} 45. Rf7+ {[%clk 0:00:55]}  Kh6 {[%clk 0:00:12]} 46. Rd7 {[%clk 0:00:56]}  Bf4 {[%clk 0:00:12]} 47. Kf3 {[%clk 0:00:56]}  Be3 {[%clk 0:00:12]} 48. e5 {[%clk 0:00:55]}  Rxc4 {[%clk 0:00:10]} 49. bxc4 {[%clk 0:00:56]}  b3 {[%clk 0:00:10]} 50. e6 {[%clk 0:00:55]}  b2 {[%clk 0:00:09]} 51. e7 {[%clk 0:00:54]}  b1=Q {[%clk 0:00:08]} 52. e8=Q {[%clk 0:00:54]}  Qf5+ {[%clk 0:00:08]} 53. Ke2 {[%clk 0:00:53]}  Ra2+ {[%clk 0:00:08]} 54. Kd1 {[%clk 0:00:54]}  Qb1# {[%clk 0:00:08]} 0-1


[Site "https://www.chess.com"]

[Event "Titled Tuesday Blitz September 27 Early 2022"]
[White "Jaskolka, Tomasz"]
[Black "Fernandez De La Vara, Arnaldo"]
[WhiteFideId "1170791"]
[BlackFideId "3518388"]
[WhiteElo "2073"]
[BlackElo "2387"]
[Result "1-0"]
[Round "05"]
[TimeControl "180+1"]
[Date "2022.09.27"]
[WhiteClock "0:00:30"]
[BlackClock "0:00:02"]

1. d4 {[%clk 0:02:57]}  c5 {[%clk 0:03:00]} 2. d5 {[%clk 0:02:56]}  Nf6 {[%clk 0:03:01]} 3. Nc3 {[%clk 0:02:55]}  d6 {[%clk 0:03:02]} 4. e4 {[%clk 0:02:56]}  a6 {[%clk 0:03:03]} 5. a4 {[%clk 0:02:56]}  g6 {[%clk 0:03:04]} 6. f4 {[%clk 0:02:55]}  Bg7 {[%clk 0:03:04]} 7. Nf3 {[%clk 0:02:55]}  Bg4 {[%clk 0:03:04]} 8. Be2 {[%clk 0:02:54]}  O-O {[%clk 0:03:04]} 9. Be3 {[%clk 0:02:50]}  Nbd7 {[%clk 0:03:04]} 10. O-O {[%clk 0:02:49]}  Ne8 {[%clk 0:03:04]} 11. Qd2 {[%clk 0:02:44]}  Nc7 {[%clk 0:03:02]} 12. h3 {[%clk 0:02:42]}  Bxf3 {[%clk 0:03:02]} 13. Bxf3 {[%clk 0:02:43]}  Rb8 {[%clk 0:03:01]} 14. a5 {[%clk 0:02:14]}  b5 {[%clk 0:03:00]} 15. axb6 {[%clk 0:02:14]}  Rxb6 {[%clk 0:02:59]} 16. Ra2 {[%clk 0:02:14]}  Qb8 {[%clk 0:02:57]} 17. Na4 {[%clk 0:02:08]}  Rb7 {[%clk 0:02:48]} 18. c3 {[%clk 0:02:00]}  Rd8 {[%clk 0:02:31]} 19. e5 {[%clk 0:01:51]}  Nb6 {[%clk 0:02:05]} 20. Nxb6 {[%clk 0:01:42]}  Rxb6 {[%clk 0:02:06]} 21. e6 {[%clk 0:01:30]}  Qb7 {[%clk 0:01:38]} 22. f5 {[%clk 0:01:22]}  Rb8 {[%clk 0:01:01]} 23. exf7+ {[%clk 0:01:17]}  Kh8 {[%clk 0:00:52]} 24. Bh6 {[%clk 0:01:00]}  Rf8 {[%clk 0:00:28]} 25. fxg6 {[%clk 0:00:58]}  hxg6 {[%clk 0:00:28]} 26. Be4 {[%clk 0:00:55]}  Ne6 {[%clk 0:00:12]} 27. Bxg6 {[%clk 0:00:40]}  Nd8 {[%clk 0:00:03]} 28. Qg5 {[%clk 0:00:33]}  e5 {[%clk 0:00:02]} 29. Bxg7+ {[%clk 0:00:30]}  Kxg7 {[%clk 0:00:03]} 30. Qf6+ {[%clk 0:00:29]}  Kh6 {[%clk 0:00:02]} 31. Bf5+ {[%clk 0:00:30]} 1-0


[Site "https://www.chess.com"]

[Event "Titled Tuesday Blitz September 27 Early 2022"]
[White "Koziorowicz, Michal"]
[Black "Jobava, Baadur"]
[WhiteFideId "21809194"]
[BlackFideId "13601520"]
[WhiteElo "2220"]
[BlackElo "2582"]
[Result "1-0"]
[Round "05"]
[TimeControl "180+1"]
[Date "2022.09.27"]
[WhiteClock "0:01:41"]
[BlackClock "0:01:37"]

1. e4 {[%clk 0:03:00]}  e6 {[%clk 0:02:58]} 2. d4 {[%clk 0:02:58]}  d5 {[%clk 0:02:59]} 3. Nd2 {[%clk 0:02:55]}  dxe4 {[%clk 0:02:58]} 4. Nxe4 {[%clk 0:02:56]}  Bd7 {[%clk 0:02:59]} 5. Nf3 {[%clk 0:02:52]}  Bc6 {[%clk 0:02:59]} 6. Bd3 {[%clk 0:02:52]}  Nd7 {[%clk 0:02:59]} 7. O-O {[%clk 0:02:51]}  Ngf6 {[%clk 0:03:00]} 8. Ned2 {[%clk 0:02:49]}  g6 {[%clk 0:02:59]} 9. c3 {[%clk 0:02:49]}  Bg7 {[%clk 0:02:59]} 10. Re1 {[%clk 0:02:49]}  O-O {[%clk 0:03:00]} 11. Qc2 {[%clk 0:02:46]}  b6 {[%clk 0:03:00]} 12. Ne4 {[%clk 0:02:38]}  Bb7 {[%clk 0:02:59]} 13. Bg5 {[%clk 0:02:37]}  h6 {[%clk 0:02:59]} 14. Bh4 {[%clk 0:02:37]}  Qc8 {[%clk 0:02:48]} 15. Rad1 {[%clk 0:02:34]}  Nxe4 {[%clk 0:02:48]} 16. Bxe4 {[%clk 0:02:34]}  Re8 {[%clk 0:02:47]} 17. Ne5 {[%clk 0:02:28]}  Nf8 {[%clk 0:02:38]} 18. Qd3 {[%clk 0:02:19]}  c5 {[%clk 0:02:29]} 19. Qf3 {[%clk 0:02:18]}  Bxe4 {[%clk 0:02:01]} 20. Qxf7+ {[%clk 0:02:18]}  Kh7 {[%clk 0:01:58]} 21. Rxe4 {[%clk 0:02:10]}  Rb8 {[%clk 0:01:58]} 22. Nxg6 {[%clk 0:01:59]}  cxd4 {[%clk 0:01:39]} 23. Rg4 {[%clk 0:01:47]}  Rb7 {[%clk 0:01:39]} 24. Nxf8+ {[%clk 0:01:46]}  Kh8 {[%clk 0:01:36]} 25. Ng6+ {[%clk 0:01:44]}  Kh7 {[%clk 0:01:37]} 26. Ne7 {[%clk 0:01:41]} 1-0


[Site "https://www.chess.com"]

[Event "Titled Tuesday Blitz September 27 Early 2022"]
[White "Kuchava, Ana"]
[Black "Begunov, Konstantin"]
[WhiteFideId "13605348"]
[BlackFideId "4118510"]
[WhiteElo "1955"]
[BlackElo "2165"]
[Result "1-0"]
[Round "05"]
[TimeControl "180+1"]
[Date "2022.09.27"]
[WhiteClock "0:00:15"]
[BlackClock "0:00:37"]

1. d4 {[%clk 0:03:00]}  d5 {[%clk 0:02:56]} 2. Nf3 {[%clk 0:03:00]}  c6 {[%clk 0:02:56]} 3. Bf4 {[%clk 0:02:46]}  Qb6 {[%clk 0:02:55]} 4. Qc1 {[%clk 0:02:41]}  Bf5 {[%clk 0:02:54]} 5. c3 {[%clk 0:02:40]}  e6 {[%clk 0:02:52]} 6. e3 {[%clk 0:02:38]}  h6 {[%clk 0:02:49]} 7. h3 {[%clk 0:02:37]}  Nf6 {[%clk 0:02:49]} 8. Be2 {[%clk 0:02:37]}  c5 {[%clk 0:02:48]} 9. O-O {[%clk 0:02:33]}  Nc6 {[%clk 0:02:48]} 10. Nbd2 {[%clk 0:02:24]}  Rc8 {[%clk 0:02:47]} 11. Nb3 {[%clk 0:02:05]}  cxd4 {[%clk 0:02:25]} 12. exd4 {[%clk 0:02:04]}  Be7 {[%clk 0:02:25]} 13. Ne5 {[%clk 0:01:48]}  O-O {[%clk 0:02:17]} 14. Qe3 {[%clk 0:01:43]}  a5 {[%clk 0:02:01]} 15. g4 {[%clk 0:01:04]}  Bh7 {[%clk 0:01:55]} 16. h4 {[%clk 0:00:59]}  a4 {[%clk 0:01:52]} 17. g5 {[%clk 0:00:57]}  hxg5 {[%clk 0:00:43]} 18. hxg5 {[%clk 0:00:57]}  Nxe5 {[%clk 0:00:43]} 19. gxf6 {[%clk 0:00:44]}  gxf6 {[%clk 0:00:39]} 20. dxe5 {[%clk 0:00:16]}  axb3 {[%clk 0:00:37]} 21. Qxb6 {[%clk 0:00:15]} 1-0


[Site "https://www.chess.com"]

[Event "Titled Tuesday Blitz September 27 Early 2022"]
[White "Lahdelma, Henri"]
[Black "Lopez Martinez, Josep Manuel"]
[WhiteFideId "510394"]
[BlackFideId "2212943"]
[WhiteElo "2210"]
[BlackElo "2471"]
[Result "1-0"]
[Round "05"]
[TimeControl "180+1"]
[Date "2022.09.27"]
[WhiteClock "0:00:56"]
[BlackClock "0:00:01"]

1. d4 {[%clk 0:03:00]}  Nf6 {[%clk 0:02:56]} 2. c4 {[%clk 0:03:01]}  e6 {[%clk 0:02:56]} 3. Nf3 {[%clk 0:03:01]}  d5 {[%clk 0:02:54]} 4. g3 {[%clk 0:03:02]}  dxc4 {[%clk 0:02:54]} 5. Bg2 {[%clk 0:03:02]}  a6 {[%clk 0:02:53]} 6. O-O {[%clk 0:03:02]}  Nc6 {[%clk 0:02:53]} 7. e3 {[%clk 0:03:01]}  Rb8 {[%clk 0:02:52]} 8. a4 {[%clk 0:02:59]}  Be7 {[%clk 0:02:38]} 9. Qc2 {[%clk 0:02:58]}  b5 {[%clk 0:02:36]} 10. axb5 {[%clk 0:02:59]}  axb5 {[%clk 0:02:36]} 11. Nc3 {[%clk 0:02:49]}  O-O {[%clk 0:02:34]} 12. b3 {[%clk 0:02:41]}  b4 {[%clk 0:02:32]} 13. Na4 {[%clk 0:02:41]}  c3 {[%clk 0:02:32]} 14. Rd1 {[%clk 0:02:40]}  Bb7 {[%clk 0:02:21]} 15. e4 {[%clk 0:02:40]}  Nd7 {[%clk 0:02:07]} 16. Bf4 {[%clk 0:02:36]}  Qc8 {[%clk 0:01:46]} 17. h4 {[%clk 0:02:36]}  h6 {[%clk 0:01:40]} 18. Bh3 {[%clk 0:02:33]}  Nd8 {[%clk 0:01:29]} 19. d5 {[%clk 0:02:25]}  Bd6 {[%clk 0:01:11]} 20. Kh2 {[%clk 0:02:10]}  Bxf4 {[%clk 0:01:07]} 21. gxf4 {[%clk 0:02:11]}  Nf6 {[%clk 0:00:56]} 22. Nc5 {[%clk 0:01:56]}  Kh8 {[%clk 0:00:53]} 23. Ne5 {[%clk 0:01:53]}  Ra8 {[%clk 0:00:45]} 24. dxe6 {[%clk 0:01:38]}  Rxa1 {[%clk 0:00:36]} 25. Rxa1 {[%clk 0:01:39]}  Nxe6 {[%clk 0:00:25]} 26. Nxe6 {[%clk 0:01:38]}  fxe6 {[%clk 0:00:18]} 27. Ng6+ {[%clk 0:01:38]}  Kh7 {[%clk 0:00:17]} 28. e5 {[%clk 0:01:34]}  Be4 {[%clk 0:00:16]} 29. Nxf8+ {[%clk 0:01:33]}  Qxf8 {[%clk 0:00:15]} 30. Qe2 {[%clk 0:01:33]}  Bg6 {[%clk 0:00:07]} 31. exf6 {[%clk 0:01:33]}  Qxf6 {[%clk 0:00:07]} 32. Qe3 {[%clk 0:01:23]}  c2 {[%clk 0:00:05]} 33. Rc1 {[%clk 0:01:14]}  Qxh4 {[%clk 0:00:05]} 34. Kg2 {[%clk 0:00:59]}  Qf6 {[%clk 0:00:05]} 35. Bxe6 {[%clk 0:00:57]}  c5 {[%clk 0:00:05]} 36. f5 {[%clk 0:00:57]}  Bh5 {[%clk 0:00:03]} 37. Rxc2 {[%clk 0:00:57]}  Bg4 {[%clk 0:00:01]} 38. Rxc5 {[%clk 0:00:56]} 1-0


[Site "https://www.chess.com"]

[Event "Titled Tuesday Blitz September 27 Early 2022"]
[White "Lauridsen, Jesper Morch"]
[Black "Jimenez Almeida, Luis David"]
[WhiteFideId "1401890"]
[BlackFideId "22242244"]
[WhiteElo "2245"]
[BlackElo "2077"]
[Result "1/2-1/2"]
[Round "05"]
[TimeControl "180+1"]
[Date "2022.09.27"]
[WhiteClock "0:00:04"]
[BlackClock "0:00:43"]

1. e4 {[%clk 0:03:00]}  c6 {[%clk 0:02:54]} 2. d4 {[%clk 0:03:00]}  Na6 {[%clk 0:02:55]} 3. Nf3 {[%clk 0:02:57]}  g6 {[%clk 0:02:55]} 4. Nc3 {[%clk 0:02:55]}  Nc7 {[%clk 0:02:54]} 5. Bg5 {[%clk 0:02:50]}  Bg7 {[%clk 0:02:53]} 6. h4 {[%clk 0:02:46]}  h6 {[%clk 0:02:49]} 7. Be3 {[%clk 0:02:45]}  d6 {[%clk 0:02:48]} 8. Bd3 {[%clk 0:02:36]}  Bg4 {[%clk 0:02:47]} 9. Qd2 {[%clk 0:02:30]}  Nf6 {[%clk 0:02:38]} 10. Nh2 {[%clk 0:02:20]}  Bc8 {[%clk 0:02:34]} 11. f3 {[%clk 0:02:12]}  b5 {[%clk 0:02:34]} 12. g4 {[%clk 0:02:02]}  h5 {[%clk 0:02:34]} 13. g5 {[%clk 0:01:59]}  Nd7 {[%clk 0:02:33]} 14. a3 {[%clk 0:01:48]}  a5 {[%clk 0:02:32]} 15. f4 {[%clk 0:01:42]}  e5 {[%clk 0:02:10]} 16. fxe5 {[%clk 0:01:29]}  dxe5 {[%clk 0:02:11]} 17. d5 {[%clk 0:01:28]}  cxd5 {[%clk 0:02:09]} 18. exd5 {[%clk 0:01:11]}  Bb7 {[%clk 0:01:52]} 19. O-O {[%clk 0:01:04]}  O-O {[%clk 0:01:47]} 20. d6 {[%clk 0:00:56]}  Ne6 {[%clk 0:01:45]} 21. Nxb5 {[%clk 0:00:49]}  Ndc5 {[%clk 0:01:42]} 22. Nc7 {[%clk 0:00:30]}  Nxc7 {[%clk 0:01:19]} 23. Bxc5 {[%clk 0:00:30]}  Ne6 {[%clk 0:01:19]} 24. b4 {[%clk 0:00:23]}  e4 {[%clk 0:01:17]} 25. Bc4 {[%clk 0:00:23]}  axb4 {[%clk 0:01:15]} 26. Bxb4 {[%clk 0:00:18]}  Bxa1 {[%clk 0:01:09]} 27. Rxa1 {[%clk 0:00:17]}  Qb6+ {[%clk 0:01:08]} 28. Kf1 {[%clk 0:00:15]}  e3 {[%clk 0:00:57]} 29. Qe2 {[%clk 0:00:12]}  Qc6 {[%clk 0:00:54]} 30. Ke1 {[%clk 0:00:09]}  Qh1+ {[%clk 0:00:48]} 31. Nf1 {[%clk 0:00:09]}  Nd4 {[%clk 0:00:48]} 32. Qd3 {[%clk 0:00:07]}  e2 {[%clk 0:00:45]} 33. Qxg6+ {[%clk 0:00:07]}  Kh8 {[%clk 0:00:43]} 34. Qh6+ {[%clk 0:00:06]}  Kg8 {[%clk 0:00:43]} 35. Qg6+ {[%clk 0:00:05]}  Kh8 {[%clk 0:00:44]} 36. Qxh5+ {[%clk 0:00:04]}  Kg8 {[%clk 0:00:42]} 37. Qg6+ {[%clk 0:00:04]}  Kh8 {[%clk 0:00:43]} 38. Qh6+ {[%clk 0:00:04]}  Kg8 {[%clk 0:00:43]} 39. Qg6+ {[%clk 0:00:04]}  Kh8 {[%clk 0:00:43]} 40. Qh6+ {[%clk 0:00:04]}  Kg8 {[%clk 0:00:43]} 41. Qg6+ {[%clk 0:00:04]} 1/2-1/2


[Site "https://www.chess.com"]

[Event "Titled Tuesday Blitz September 27 Early 2022"]
[White "Levitskiy, Andrey"]
[Black "Levitan, Caleb Levi"]
[WhiteFideId "14132885"]
[BlackFideId "14332620"]
[WhiteElo "2303"]
[BlackElo "1811"]
[Result "0-1"]
[Round "05"]
[TimeControl "180+1"]
[Date "2022.09.27"]
[WhiteClock "0:00:14"]
[BlackClock "0:00:13"]

1. e4 {[%clk 0:02:54]}  c5 {[%clk 0:02:59]} 2. Nf3 {[%clk 0:02:50]}  e6 {[%clk 0:02:59]} 3. d4 {[%clk 0:02:50]}  cxd4 {[%clk 0:02:59]} 4. Nxd4 {[%clk 0:02:51]}  a6 {[%clk 0:02:59]} 5. Nc3 {[%clk 0:02:46]}  b5 {[%clk 0:02:59]} 6. a3 {[%clk 0:02:44]}  Bb7 {[%clk 0:02:58]} 7. g3 {[%clk 0:02:45]}  Nc6 {[%clk 0:02:53]} 8. Bg2 {[%clk 0:02:45]}  Bc5 {[%clk 0:02:41]} 9. Nb3 {[%clk 0:02:43]}  Ba7 {[%clk 0:02:39]} 10. O-O {[%clk 0:02:40]}  Nge7 {[%clk 0:02:37]} 11. Kh1 {[%clk 0:02:33]}  O-O {[%clk 0:02:37]} 12. f4 {[%clk 0:02:33]}  Nb8 {[%clk 0:01:50]} 13. g4 {[%clk 0:02:30]}  d5 {[%clk 0:01:48]} 14. e5 {[%clk 0:02:30]}  Nd7 {[%clk 0:01:42]} 15. Qe2 {[%clk 0:02:27]}  Ng6 {[%clk 0:01:37]} 16. Be3 {[%clk 0:02:16]}  Bxe3 {[%clk 0:01:26]} 17. Qxe3 {[%clk 0:02:16]}  Qb6 {[%clk 0:01:21]} 18. Nd4 {[%clk 0:02:12]}  Rac8 {[%clk 0:01:18]} 19. Rad1 {[%clk 0:02:11]}  Rce8 {[%clk 0:00:51]} 20. Qg3 {[%clk 0:02:03]}  f6 {[%clk 0:00:47]} 21. exf6 {[%clk 0:01:58]}  Nxf6 {[%clk 0:00:45]} 22. f5 {[%clk 0:01:50]}  exf5 {[%clk 0:00:44]} 23. Nxf5 {[%clk 0:01:50]}  Ne4 {[%clk 0:00:38]} 24. Nxe4 {[%clk 0:01:49]}  dxe4 {[%clk 0:00:38]} 25. Rd7 {[%clk 0:01:42]}  Kh8 {[%clk 0:00:22]} 26. Rfd1 {[%clk 0:01:29]}  Bc8 {[%clk 0:00:21]} 27. R7d6 {[%clk 0:01:11]}  Qc7 {[%clk 0:00:20]} 28. Nxg7 {[%clk 0:01:02]}  Qxg7 {[%clk 0:00:19]} 29. Rc6 {[%clk 0:00:53]}  e3 {[%clk 0:00:18]} 30. Rc7 {[%clk 0:00:51]}  Qe5 {[%clk 0:00:18]} 31. Re1 {[%clk 0:00:48]}  Qxg3 {[%clk 0:00:18]} 32. hxg3 {[%clk 0:00:49]}  Bxg4 {[%clk 0:00:17]} 33. Bc6 {[%clk 0:00:48]}  e2 {[%clk 0:00:17]} 34. Kg2 {[%clk 0:00:44]}  Re3 {[%clk 0:00:16]} 35. Bd5 {[%clk 0:00:29]}  Rf1 {[%clk 0:00:16]} 36. Rxe2 {[%clk 0:00:17]}  Bxe2 {[%clk 0:00:16]} 37. Rc8+ {[%clk 0:00:17]}  Kg7 {[%clk 0:00:16]} 38. Rg8+ {[%clk 0:00:17]}  Kh6 {[%clk 0:00:16]} 39. g4 {[%clk 0:00:16]}  Rd1 {[%clk 0:00:16]} 40. g5+ {[%clk 0:00:17]}  Kxg5 {[%clk 0:00:16]} 41. Bb3 {[%clk 0:00:17]}  Bf3+ {[%clk 0:00:16]} 42. Kf2 {[%clk 0:00:17]}  Rxb3 {[%clk 0:00:13]} 43. cxb3 {[%clk 0:00:17]}  Bd5 {[%clk 0:00:13]} 44. Rd8 {[%clk 0:00:16]}  Bxb3 {[%clk 0:00:13]} 45. Ra8 {[%clk 0:00:16]}  Rd2+ {[%clk 0:00:14]} 46. Ke3 {[%clk 0:00:16]}  Rc2 {[%clk 0:00:14]} 47. Rxa6 {[%clk 0:00:17]}  Rxb2 {[%clk 0:00:14]} 48. Rb6 {[%clk 0:00:17]}  Bc4 {[%clk 0:00:15]} 49. Kd4 {[%clk 0:00:17]}  Rb3 {[%clk 0:00:16]} 50. a4 {[%clk 0:00:17]}  Ra3 {[%clk 0:00:16]} 51. axb5 {[%clk 0:00:17]}  Bxb5 {[%clk 0:00:17]} 52. Rxb5+ {[%clk 0:00:17]}  Kg4 {[%clk 0:00:18]} 53. Rb6 {[%clk 0:00:17]}  Nf4 {[%clk 0:00:18]} 54. Ke4 {[%clk 0:00:16]}  h5 {[%clk 0:00:18]} 55. Rb8 {[%clk 0:00:16]}  Ra4+ {[%clk 0:00:18]} 56. Ke3 {[%clk 0:00:16]}  Nd5+ {[%clk 0:00:19]} 57. Kf2 {[%clk 0:00:17]}  Ra2+ {[%clk 0:00:19]} 58. Kf1 {[%clk 0:00:18]}  Ne3+ {[%clk 0:00:19]} 59. Ke1 {[%clk 0:00:17]}  h4 {[%clk 0:00:17]} 60. Rg8+ {[%clk 0:00:17]}  Kh3 {[%clk 0:00:16]} 61. Re8 {[%clk 0:00:17]}  Ng4 {[%clk 0:00:16]} 62. Rb8 {[%clk 0:00:16]}  Kg3 {[%clk 0:00:17]} 63. Rb3+ {[%clk 0:00:16]}  Kg2 {[%clk 0:00:17]} 64. Rb4 {[%clk 0:00:14]}  Kf3 {[%clk 0:00:13]} 65. Rb7 {[%clk 0:00:13]}  h3 {[%clk 0:00:12]} 66. Rh7 {[%clk 0:00:12]}  Kg2 {[%clk 0:00:12]} 67. Rg7 {[%clk 0:00:12]}  Kg3 {[%clk 0:00:12]} 68. Rh7 {[%clk 0:00:12]}  h2 {[%clk 0:00:12]} 69. Kf1 {[%clk 0:00:13]}  Ra1+ {[%clk 0:00:12]} 70. Ke2 {[%clk 0:00:13]}  h1=Q {[%clk 0:00:12]} 71. Rf7 {[%clk 0:00:14]}  Qg2+ {[%clk 0:00:12]} 72. Kd3 {[%clk 0:00:14]}  Ra3+ {[%clk 0:00:12]} 73. Kc4 {[%clk 0:00:14]}  Qc2+ {[%clk 0:00:13]} 74. Kb5 {[%clk 0:00:14]}  Qb3+ {[%clk 0:00:13]} 0-1


[Site "https://www.chess.com"]

[Event "Titled Tuesday Blitz September 27 Early 2022"]
[White "Ljukin, Sergei"]
[Black "Tasev, Dejan"]
[WhiteFideId "14102200"]
[BlackFideId "936618"]
[WhiteElo "2312"]
[BlackElo "2256"]
[Result "0-1"]
[Round "05"]
[TimeControl "180+1"]
[Date "2022.09.27"]
[WhiteClock "0:00:04"]
[BlackClock "0:00:41"]

1. e4 {[%clk 0:02:54]}  e5 {[%clk 0:02:59]} 2. Nf3 {[%clk 0:02:53]}  Nc6 {[%clk 0:02:59]} 3. Bb5 {[%clk 0:02:53]}  a6 {[%clk 0:02:59]} 4. Ba4 {[%clk 0:02:53]}  b5 {[%clk 0:02:59]} 5. Bb3 {[%clk 0:02:53]}  Nf6 {[%clk 0:02:59]} 6. Qe2 {[%clk 0:02:43]}  Be7 {[%clk 0:02:55]} 7. c3 {[%clk 0:02:44]}  O-O {[%clk 0:02:53]} 8. d4 {[%clk 0:02:44]}  d6 {[%clk 0:02:53]} 9. O-O {[%clk 0:02:43]}  Bg4 {[%clk 0:02:45]} 10. Rd1 {[%clk 0:02:02]}  Qc8 {[%clk 0:02:23]} 11. a4 {[%clk 0:01:57]}  b4 {[%clk 0:02:17]} 12. a5 {[%clk 0:01:57]}  bxc3 {[%clk 0:02:08]} 13. bxc3 {[%clk 0:01:57]}  exd4 {[%clk 0:02:07]} 14. cxd4 {[%clk 0:01:57]}  Re8 {[%clk 0:02:02]} 15. Ba4 {[%clk 0:01:15]}  Bd7 {[%clk 0:01:58]} 16. Nc3 {[%clk 0:01:15]}  Bf8 {[%clk 0:01:57]} 17. Qc2 {[%clk 0:01:00]}  Nb4 {[%clk 0:01:46]} 18. Qb1 {[%clk 0:00:59]}  c5 {[%clk 0:01:41]} 19. e5 {[%clk 0:00:55]}  Bxa4 {[%clk 0:01:36]} 20. Nxa4 {[%clk 0:00:50]}  Nd7 {[%clk 0:01:31]} 21. dxc5 {[%clk 0:00:44]}  dxe5 {[%clk 0:01:24]} 22. Qxb4 {[%clk 0:00:39]}  e4 {[%clk 0:01:20]} 23. Nd4 {[%clk 0:00:35]}  Ne5 {[%clk 0:01:15]} 24. Nb6 {[%clk 0:00:28]}  Qg4 {[%clk 0:01:14]} 25. Be3 {[%clk 0:00:20]}  Nf3+ {[%clk 0:01:09]} 26. Kh1 {[%clk 0:00:15]}  Nh4 {[%clk 0:01:01]} 27. Rg1 {[%clk 0:00:13]}  Ra7 {[%clk 0:01:00]} 28. Qc4 {[%clk 0:00:12]}  Re5 {[%clk 0:00:54]} 29. Qe2 {[%clk 0:00:10]}  Qg6 {[%clk 0:00:48]} 30. Rac1 {[%clk 0:00:08]}  Rh5 {[%clk 0:00:44]} 31. Bf4 {[%clk 0:00:04]}  Nf5 {[%clk 0:00:41]} 0-1


[Site "https://www.chess.com"]